Cogmind - Beta 15 @@@ ROGUE MODE // 2025.06.25 @ 14:23:02 Player: LameThyst Result: Destroyed by H-61 Shepherd with Heavy Assault Cannon Performance ------------- Evolutions (3) 1500 Regions Visited (6) 1200 Robots Destroyed (85) 425 Value Destroyed (3621) 3621 Prototype IDs (5) 100 Alien Tech Used (0) 0 Bonus (449) 449 TOTAL SCORE: 7295 Bonus ------- High Alert Combat Kills 449 Cogmind --------- Core Integrity 0/700 Matter 188/300 Energy 220/220 System Corruption 6% Temperature Cool (17) Movement Flying (189) Ox4 Location -7/Factory Parts ------- > --- POWER (2) -------- Light Nuclear Core Light Nuclear Core > --- PROPULSION (4) --- Surge Thruster Surge Thruster Surge Thruster > --- UTILITY (4) ------ Large Storage Unit > --- WEAPON (3) ------- Gatling Laser Gauss Rifle (fused) Assault Cannon > --- INVENTORY (15) --- Light Treads Recoil Stabilizer Matter Filter Transmission Jammer Improved Utility Shielding Hardened Medium Armor Plating Gatling Laser Rocket Launcher Improved Grenade Launcher Chainsword Peak State ------------ > --- POWER ------------ Improved Deuterium Engine Improved Deuterium Engine > --- PROPULSION ------- Medium Treads Medium Treads Medium Treads Medium Treads > --- UTILITY ---------- Improved Heat Sink Medium Storage Unit Weapon Cycler Sensor Drone Bay > --- WEAPON ----------- Heavy Laser High-powered Shotgun Gauss Rifle > --- INVENTORY -------- Micro Nuclear Core Large Matter Pod Gatling Laser Gatling Laser Plasma Cannon High-powered Shotgun Flak Gun Improved Light Cannon Rocket Launcher Powered Hammer [Rating: 54] Favorites ----------- Power Improved Deuterium Engine Engine Improved Deuterium Engine Power Core Light Nuclear Core Propulsion Medium Treads Treads Medium Treads Leg Aluminum Leg Wheel Compact Wheel Flight Unit Surge Thruster Utility Improved Heat Sink Device Improved Heat Sink Storage Large Storage Unit Protection Improved Light Armor Plating Weapon Assault Cannon Energy Gun Gatling Laser Energy Cannon Plasma Cannon Ballistic Gun Gauss Rifle Ballistic Cannon Assault Cannon Launcher Advanced EMP Blaster Slashing Weapon Chainsword Build | -11 -10 -10 -9 -9 -8 -7 ------- Run | Yrd Mat Min Mat Min Mat Fac Slots Evolved 6 | . . . 2 . 2 2 Power 1 | . . . 1 . . . Propulsion 2 | . . . 1 . 1 . Utility 2 | . . . . . 1 1 Weapon 1 | . . . . . . 1 Parts Attached 103 | 8 . 8 7 6 16 58 Power 18 | 1 . 1 1 1 2 12 Engine 12 | 1 . . 1 1 1 8 Core 6 | . . 1 . . 1 4 Reactor . | . . . . . . . Propulsion 32 | 4 . 2 4 1 9 12 Treads 9 | . . . 1 . 4 4 Leg 13 | 2 . . 2 1 5 3 Wheel 5 | 2 . 2 1 . . . Hover . | . . . . . . . Flight 5 | . . . . . . 5 Utility 24 | 1 . 3 . 2 3 15 Device 17 | . . 2 . 1 3 11 Storage 5 | 1 . 1 . 1 . 2 Processor . | . . . . . . . Hackware . | . . . . . . . Protection 2 | . . . . . . 2 Artifact . | . . . . . . . Weapon 29 | 2 . 2 2 2 2 19 Energy Gun 7 | 1 . . . . 1 5 Energy Cannon 2 | . . . . 1 . 1 Ballistic Gun 9 | 1 . . 2 1 1 4 Ballistic Cannon 9 | . . 2 . . . 7 Launcher 1 | . . . . . . 1 Special Weapon . | . . . . . . . Impact Weapon . | . . . . . . . Slashing Weapon 1 | . . . . . . 1 Piercing Weapon . | . . . . . . . Special Melee Weapon . | . . . . . . . Unidentified Prototypes 5 | . . . . 1 . 4 Parts Lost 39 | . . . 6 . 5 28 Power 9 | . . . 1 . 1 7 Propulsion 16 | . . . 3 . 2 11 Utility 4 | . . . . . 1 3 Weapon 10 | . . . 2 . 1 7 Highest Loss Streak 14 | . . . 5 . 5 14 To Critical Strikes . | . . . . . . . Average Backups 11 | 2 6 7 9 9 9 12 Power . | . 1 1 . . . . Propulsion . | 2 4 2 . 1 1 . Utility 2 | . . 1 3 2 2 3 Weapon 6 | . 1 3 4 4 5 7 Tool/Special . | . . . . . . . Unused Backups 25 | . . 2 1 3 . 19 Power 3 | . . . . . . 3 Propulsion 2 | . . 2 . . . . Utility 3 | . . . . 1 . 2 Weapon 16 | . . . 1 2 . 13 Tool/Special 1 | . . . . . . 1 Average Slot Usage (%) 87 | . 85 98 71 98 95 85 Engine 10 | . 14 1 2 21 14 10 Core 2 | . . 12 3 . 2 1 Treads 16 | . . . 4 . 8 21 Leg 4 | . . . 1 32 27 . Wheel 3 | . 28 28 16 . . . Device 14 | . . 12 11 3 7 16 Storage 9 | . 14 14 11 18 16 7 Protection 1 | . . . . . . 2 Energy Gun 4 | . 14 . . . 1 6 Energy Cannon 1 | . . . . 1 4 1 Ballistic Gun 7 | . 14 11 10 20 11 5 Ballistic Cannon 7 | . . 15 10 . . 8 Peak Build Rating 54 | 6 6 17 18 19 36 54 Average Rating 33 | 4 6 12 13 12 22 40 On Entrance 12 | . 6 6 17 13 12 36 Naked Turns . | . . . . . . . Heaviest Build 61 | 14 14 28 28 28 33 61 Greatest Support 112 | 26 26 32 48 30 112 112 Greatest Overweight (x) 13 | . . 1 4 . 1 13 Average Overweight (x) . | . . . . . . . Largest Inventory Capacity 15 | 8 8 10 10 10 10 15 Average Capacity 12 | 6 8 9 10 10 10 13 Most Carried 15 | 6 7 10 10 10 10 15 Average Carried 11 | 3 6 7 9 9 9 12 Final Capacity 15 | 8 8 10 10 10 10 15 Final Carried 10 | 6 7 10 8 10 9 10 Class Distribution -------------------- 28% | Scavenger-Tank 18% | Scavenger-Mutant 15% | Tank 14% | Mutant 12% | Gunner 5% | Scavenger-Gunner 4% | Skirmisher Dominant Class ---------------- Mutant | -10/Materials Mutant | -10/Mines Mutant | -9/Materials Scavenger-Mutant | -9/Mines Scavenger-Mutant | -8/Materials Scavenger-Tank | -7/Factory Resources | -11 -10 -10 -9 -9 -8 -7 ----------- Run | Yrd Mat Min Mat Min Mat Fac Matter Collected 3289 | 178 43 555 256 124 263 1870 Remotely . | . . . . . . . Salvage Created 3010 | . 43 132 276 193 302 2064 Parts 138 | . 6 3 13 16 12 88 Haulers Intercepted 3 | . . . . . . 3 Recyclers Shooed 3 | . . . 1 . . 2 Parts Field Recycled . | . . . . . . . Retrieved Matter . | . . . . . . . Parts Self-Destructed . | . . . . . . . Prevented . | . . . . . . . Kills | -11 -10 -10 -9 -9 -8 -7 ------- Run | Yrd Mat Min Mat Min Mat Fac Combat Hostiles Destroyed 85 | . 3 10 8 7 6 51 Guns 45 | . 3 1 5 5 5 26 Cannons 34 | . . 9 3 2 1 19 AOE 4 | . . . . . . 4 Classes Destroyed 14 | . 1 2 1 1 . 9 Worker 2 | . . . . . . 2 Builder 2 | . . . . . . 2 Hauler 3 | . . . . . . 3 Watcher 1 | . . . . . . 1 Swarmer 9 | . 3 . . 4 . 2 Cutter 3 | . . . . . . 3 Grunt 35 | . . 2 5 2 5 21 Brawler 2 | . . . . 1 . 1 Duelist 1 | . . . . . . 1 Sentry 15 | . . . 3 . 1 11 Specialist 2 | . . . . . . 2 Hunter 3 | . . . . . . 3 Programmer 7 | . . . . . . 7 Assembled 8 | . . 8 . . . . Best Kill Streak 6 | . 3 6 3 4 1 5 Combat Bots Only 6 | . 3 6 3 4 1 5 Max Kills in Single Turn 2 | . 1 1 1 1 1 2 Gunslinging . | . . . . . . . Exploded 1 | . . . . . . 1 Melee . | . . . . . . . Uniques/NPCs Destroyed . | . . . . . . . Combat | -11 -10 -10 -9 -9 -8 -7 -------- Run | Yrd Mat Min Mat Min Mat Fac Hostile Shots Fired 816 | . 27 23 47 30 64 625 Missed 242 | . 7 8 8 10 18 191 Hits 574 | . 20 15 39 20 46 434 Melee 12 | . . 4 . 2 . 6 Projectile 562 | . 20 11 39 18 46 428 AOE 1 | . . . . . . 1 Critical Strikes 12 | . . 1 . . 1 10 Part Disruptions 2 | . . 2 . . . . Damage Taken 6918 | . 169 296 546 216 702 4989 Core 1138 | . 41 189 110 48 33 717 Absorbed by Shields 253 | . . . . . . 253 Core Remaining (%) 65 | 100 . 8 . 60 94 . Volleys Fired 239 | . 8 20 24 12 28 147 Largest 3 | . 2 2 2 2 2 3 Hottest 200 | . 70 81 81 91 103 200 Shots Fired 581 | . 16 35 44 24 49 413 Gun 306 | . 16 9 19 19 32 211 Cannon 275 | . . 26 25 5 17 202 Launcher . | . . . . . . . Special . | . . . . . . . Kinetic 387 | . 8 35 44 19 29 252 Thermal 187 | . 8 . . 5 20 154 Explosive . | . . . . . . . Electromagnetic 7 | . . . . . . 7 Robot Hit Streak 25 | . 7 4 10 6 7 25 Robot Miss Streak 5 | . 3 4 4 3 3 5 Penetration Max 1 | . . 1 . . . . Secondary Targets 1 | . 1 . . . . . Max Gunslinging Chain 1 | . 1 . . . . . Shots Hit Robots 394 | . 9 15 28 16 33 293 Core Hits 198 | . 3 11 12 9 13 150 Critical Kills 8 | . . 3 3 . . 2 Critical Parts Destroyed 5 | . . 1 2 . . 2 Critical Strikes 20 | . . 4 5 . . 11 Burn 2 | . . . . . . 2 Destroy 13 | . . 4 5 . . 4 Blast 5 | . . . . . . 5 Melee Attacks 1 | . . . . . . 1 Impact . | . . . . . . . Slashing 1 | . . . . . . 1 Piercing . | . . . . . . . Sneak Attacks . | . . . . . . . Combat Hostiles . | . . . . . . . Follow-up Attacks . | . . . . . . . Damage Inflicted 9754 | . 111 412 529 254 572 7876 Guns 4667 | . 111 53 207 213 388 3695 Cannons 4071 | . . 359 322 41 184 3165 Explosions 985 | . . . . . . 985 Melee 31 | . . . . . . 31 Ramming . | . . . . . . . Kinetic 5201 | . 61 412 529 213 331 3655 Thermal 3920 | . 50 . . 41 241 3588 Explosive 550 | . . . . . . 550 Electromagnetic 52 | . . . . . . 52 Impact . | . . . . . . . Slashing 31 | . . . . . . 31 Piercing . | . . . . . . . Highest Corruption 6 | . . . . . . 6 Average Corruption 3 | . . . . . . 3 Corruption Purged . | . . . . . . . Corruption Blocked . | . . . . . . . Effects 56 | . . . . . . 56 Message Errors 9 | . . . . . . 9 Matter Fused 13 | . . . . . . 13 Heat Flow Errors 8 | . . . . . . 8 Energy Discharges 8 | . . . . . . 8 Parts Rejected 1 | . . . . . . 1 Parts Fused 2 | . . . . . . 2 Data Loss (minor) 8 | . . . . . . 8 Data Loss (major) 1 | . . . . . . 1 Misfires 5 | . . . . . . 5 Alerts 1 | . . . . . . 1 Overload Shots . | . . . . . . . Overflow Damage 178 | . . 7 2 . . 169 Projectiles 28 | . . 7 2 . . 19 Explosions 150 | . . . . . . 150 Melee . | . . . . . . . Knockbacks 36 | . . 3 . . . 33 Impact . | . . . . . . . Kinetic 34 | . . 3 . . . 31 Secondary 2 | . . . . . . 2 Self-Inflicted Damage 339 | . . . . . . 339 Shots 5 | . . . . . . 5 Rammed . | . . . . . . . Targets Rammed . | . . . . . . . Kicked . | . . . . . . . Crushed . | . . . . . . . Highest Temperature 490 | . 92 19 . 165 397 490 Average Temperature 125 | . 54 7 . 81 175 124 Received Heat Transfer 2246 | . 15 115 207 36 405 1468 Effects 30 | . . . . . 7 23 Shutdowns 7 | . . . . . 2 5 Energy Bleed 7 | . . . . . 1 6 Interference 9 | . . . . . 1 8 Matter Decay 2 | . . . . . . 2 Short Circuit 2 | . . . . . 1 1 Damage (minor) 3 | . . . . . 2 1 Siege Activations . | . . . . . . . Martial Activations . | . . . . . . . Shielding Activations . | . . . . . . . Robots Disrupted . | . . . . . . . Combat Hostiles . | . . . . . . . Robots Corrupted . | . . . . . . . Combat Hostiles . | . . . . . . . Parts Fried . | . . . . . . . Impact Corruptions . | . . . . . . . Robots Melted 2 | . . . . . . 2 Combat Hostiles 2 | . . . . . . 2 Parts Melted 16 | . . . . . . 16 Heat Transferred 7484 | . 148 . . 74 458 6804 Parts Sabotaged . | . . . . . . . Parts Stolen . | . . . . . . . Parts Stripped . | . . . . . . . Power Chain Reactions 1 | . . . . . . 1 Alert | -11 -10 -10 -9 -9 -8 -7 ------- Run | Yrd Mat Min Mat Min Mat Fac Maximum Alert Level 3 | . . . . . . 3 Low Security (%) 41 | 100 100 100 100 100 100 18 Level 1 31 | . . . . . . 44 Level 2 10 | . . . . . . 15 Level 3 15 | . . . . . . 21 Level 4 . | . . . . . . . Level 5 . | . . . . . . . High Security . | . . . . . . . Max Security . | . . . . . . . Peak Influence 927 | . 70 63 94 98 40 927 Initial 28 | . . 23 . 28 . . Average 273 | . 18 11 44 39 8 371 Influence Increases 2586 | . 70 57 218 160 159 1922 Destroy 0b10 Robot/C 1540 | . 60 40 160 140 120 1020 Destroy 0b10 Robot/NC 40 | . . . . . . 40 Destroy Leader 448 | . 10 10 50 20 30 328 Successful Hack 9 | . . . . . 9 . Disable Machine 345 | . . . . . . 345 Destroy Structure 69 | . . 7 8 . . 54 Lose Combat Pursuer 135 | . . . . . . 135 Influence Decreases 1661 | . 10 117 144 234 159 997 Entered New Map 83 | . . 37 . 46 . . Time Decay 1070 | . 10 77 94 188 119 582 Lost Part 355 | . . . 50 . 40 265 Lost Ally 3 | . . 3 . . . . Purge Threat 150 | . . . . . . 150 Squads Dispatched 29 | . . . 1 . 2 26 Investigation 3 | . . . . . . 3 Extermination 7 | . . . . . . 7 Reinforcement 6 | . . . 1 . 2 3 Assault 1 | . . . . . . 1 Garrison 12 | . . . . . . 12 Intercept . | . . . . . . . Searches Triggered . | . . . . . . . Construction Impeded . | . . . . . . . Haulers Reinforced 1 | . . . . . . 1 Active Scanning Responses . | . . . . . . . Cargo Convoy Interrupts . | . . . . . . . Stealth | -11 -10 -10 -9 -9 -8 -7 --------- Run | Yrd Mat Min Mat Min Mat Fac Distress Signals 10 | . 1 2 3 . . 4 Communications Jammed 12 | . . . . . . 12 Distress Signals 12 | . . . . . . 12 Times Spotted 136 | . 8 14 11 6 8 89 Peak Tracking Total 8 | . 6 7 6 4 3 8 Tactical Retreats 6 | . . 2 . . . 4 Traps | -11 -10 -10 -9 -9 -8 -7 ------- Run | Yrd Mat Min Mat Min Mat Fac Traps Triggered 1 | . . . . . . 1 Indirectly . | . . . . . . . Trap Hack Attempts . | . . . . . . . Triggered . | . . . . . . . Disarmed . | . . . . . . . Reprogrammed . | . . . . . . . Reused . | . . . . . . . Traps Extracted . | . . . . . . . Installed . | . . . . . . . Triggered . | . . . . . . . Machines | -11 -10 -10 -9 -9 -8 -7 ---------- Run | Yrd Mat Min Mat Min Mat Fac Machines Disabled 23 | . . . . . . 23 Max in Single Turn 12 | . . . . . . 12 Machines Repaired . | . . . . . . . Machines Dismantled . | . . . . . . . Machines Sabotaged . | . . . . . . . Overloaded Fab Kills . | . . . . . . . Hacking | -11 -10 -10 -9 -9 -8 -7 --------- Run | Yrd Mat Min Mat Min Mat Fac Machines Accessed 12 | . 1 . 1 1 1 8 Terminals 8 | . 1 . . . 1 6 Fabricators 1 | . . . . . . 1 Repair Stations . | . . . . . . . Recycling Units 2 | . . . 1 . . 1 Scanalyzers . | . . . . . . . Garrison Access . | . . . . . . . Total Hacks 30 | . 2 . 3 1 1 23 Successful 9 | . . . 2 1 1 5 Failed 21 | . 2 . 1 . . 18 Catastrophic 6 | . 2 . . . . 4 Database Lockouts . | . . . . . . . Manual . | . . . . . . . Terminals 22 | . 2 . . . 1 19 Fabricators 2 | . . . . . . 2 Repair Stations . | . . . . . . . Recycling Units 5 | . . . 3 . . 2 Scanalyzers . | . . . . . . . Garrison Access . | . . . . . . . Terminal Hacks 7 | . . . . 1 1 5 Record 1 | . . . . . . 1 Open Door 1 | . . . . 1 . . Emergency Access Points 1 | . . . . . . 1 Unreport Threat 1 | . . . . . . 1 Hauler Manifests 1 | . . . . . . 1 Registered Prototypes 1 | . . . . . 1 . Zone Layout 1 | . . . . . . 1 Fabricator Hacks . | . . . . . . . Repair Station Hacks . | . . . . . . . Recycling Unit Hacks 2 | . . . 2 . . . Retrieve Matter 1 | . . . 1 . . . Retrieve Components 1 | . . . 1 . . . Scanalyzer . | . . . . . . . Garrison Access Hacks . | . . . . . . . Unauthorized Hacks . | . . . . . . . Terminals . | . . . . . . . Fabricators . | . . . . . . . Repair Stations . | . . . . . . . Recycling Units . | . . . . . . . Scanalyzers . | . . . . . . . Garrison Access . | . . . . . . . Data Cores Recovered . | . . . . . . . Used . | . . . . . . . Hacking Detections 8 | . 1 . . . . 7 Full Trace Events 3 | . . . . . . 3 Feedback Events 1 | . . . . . . 1 Corruption 1 | . . . . . . 1 Feedback Blocked . | . . . . . . . Robot Schematics Acquired . | . . . . . . . Robots Built . | . . . . . . . Authchips . | . . . . . . . Time . | . . . . . . . Total Robot Build Rating . | . . . . . . . Part Schematics Acquired . | . . . . . . . Parts Built . | . . . . . . . Authchips . | . . . . . . . Time . | . . . . . . . Total Part Build Rating . | . . . . . . . Parts Repaired . | . . . . . . . Time . | . . . . . . . Parts Recycled . | . . . . . . . Recycled Matter . | . . . . . . . Retrieved Matter . | . . . . . . . Retrieved Components . | . . . . . . . Parts Scanalyzed . | . . . . . . . Part Schematics Acquired . | . . . . . . . Parts Damaged . | . . . . . . . Bothacking | -11 -10 -10 -9 -9 -8 -7 ------------ Run | Yrd Mat Min Mat Min Mat Fac Used RIF Installer . | . . . . . . . Robots Hacked . | . . . . . . . Non-combat . | . . . . . . . Combat . | . . . . . . . Robot Hacks Applied . | . . . . . . . Relay Couplers Released . | . . . . . . . Fabnet Peak Effective % . | . . . . . . . Robots Rewired . | . . . . . . . Allies Hacked . | . . . . . . . Hacks Repelled . | . . . . . . . Allies | -11 -10 -10 -9 -9 -8 -7 -------- Run | Yrd Mat Min Mat Min Mat Fac Total Allies 3 | . . 3 . . . . Largest Group 3 | . . 3 . . . . Highest-Rated Group 40 | . . 40 . . . . Highest-Rated Ally 16 | . . 16 . . . . Total Orders . | . . . . . . . Ally Attacks 27 | . . 27 . . . . Total Damage 232 | . . 232 . . . . Kills 3 | . . 3 . . . . Allies Corrupted . | . . . . . . . Allies Melted . | . . . . . . . Intel | -11 -10 -10 -9 -9 -8 -7 ------- Run | Yrd Mat Min Mat Min Mat Fac Active Infowar (turns) 1755 | . . . . . . 1755 Sensors 831 | . . . . . . 831 Jamming 924 | . . . . . . 924 Robot Analysis Total . | . . . . . . . Derelict Logs Recovered 3 | . . 1 . 2 . . Drone Launches . | . . . . . . . Drone Recoveries . | . . . . . . . Exploration | -11 -10 -10 -9 -9 -8 -7 ------------- Run | Yrd Mat Min Mat Min Mat Fac Turns Passed 5959 | 55 97 416 292 455 368 4276 Spaces Moved 2918 | 40 80 329 165 309 181 1814 Core 115 | 3 . . 2 . . 110 Treads 1742 | . . . 46 . 41 1655 Legs 496 | 10 . . 14 309 140 23 Wheels 539 | 27 80 329 103 . . . Hover . | . . . . . . . Flight 26 | . . . . . . 26 Fastest Speed 50 | 50 90 90 100 120 110 155 Average Speed 159 | 94 90 91 120 120 126 190 Slowest Speed 700 | 120 90 105 250 120 240 700 Overloaded Moves . | . . . . . . . Propulsion Burnouts . | . . . . . . . Robots Hopped . | . . . . . . . Potential Cave-ins . | . . . . . . . Cave-ins Triggered . | . . . . . . . Exploration Rate (%) 34 | 3 28 63 21 69 17 40 Regions Visited 6 Branch Regions 2 Pre-discovered Areas 1 | . . 1 . . . . Known Exits Taken . | . . . . . . . Unknown Exits Taken 6 | 1 1 1 1 1 1 . Scrap Searched 2 | . . 1 . 1 . . Spaces Dug . | . . . . . . . Terrain Destroyed 58 | . . 7 8 . . 43 Melee . | . . . . . . . Projectile 22 | . . 7 8 . . 7 AOE 36 | . . . . . . 36 Terrain Rammed . | . . . . . . . Walls Destroyed . | . . . . . . . Machines Disabled . | . . . . . . . Actions | -11 -10 -10 -9 -9 -8 -7 --------- Run | Yrd Mat Min Mat Min Mat Fac Total 3743 | 53 88 411 216 370 270 2335 Wait 269 | . . 36 11 30 27 165 Move 2912 | 39 79 328 164 308 180 1814 Hop . | . . . . . . . Pick Up 88 | 6 1 7 6 7 5 56 Fast Attach 43 | 6 . 1 3 2 8 23 Attach 26 | . . . 4 . 3 19 Detach 7 | . . . . 1 1 5 Swap 64 | 2 . 9 . 4 9 40 Drop 92 | . . 10 4 6 9 63 Fire 239 | . 8 20 24 12 28 147 Melee 1 | . . . . . . 1 Ram . | . . . . . . . Kick . | . . . . . . . Crush . | . . . . . . . Escape Stasis 2 | . . . . . . 2 Rewire . | . . . . . . . Trap . | . . . . . . . Miscellaneous . | . . . . . . . Route ------- -11/Scrapyard -10/Materials -10/Mines (discovered 2 exits: *Mat x2) -9/Materials -9/Mines -8/Materials -7/Factory (discovered 1 exit: [*Fac]) History --------- Turn | Location | Event 12 | -11/Scrapyard | Discovered new exit (range 16) 56 | -11/Scrapyard | Entered Materials 135 | -10/Materials | Discovered new exit (range 15) 153 | -10/Materials | Entered Mines 163 | -10/Mines | A weapon hastily lodged in a ceiling crevice suddenly fell to the ground 209 | -10/Mines | Assembled infested the area 214 | -10/Mines | Assisted by a Guerilla fighting off Assembled 262 | -10/Mines | Assisted by bots powering up and referring to "LRC-V3" 329 | -10/Mines | Build established: Mutant 519 | -10/Mines | Discovered new exit (range 14) 522 | -10/Mines | Core integrity fell below 50% 526 | -10/Mines | Discovered new exit (range 8) 529 | -10/Mines | Core integrity fell below 20% 559 | -10/Mines | Lost 3 allies 569 | -10/Mines | Entered Materials 569 | -9/Materials | Evolved 2 slots: Power x1, Propulsion x1 751 | -9/Materials | Lost 5 parts (3n2w) 817 | -9/Materials | Discovered new exit (range 16) 861 | -9/Materials | Entered Mines 909 | -9/Mines | Learned Materials garrison access intel 973 | -9/Mines | Found the Drone Emporium 979 | -9/Mines | Found Prototype Device 980 | -9/Mines | Identified Sensor Drone Bay 1019 | -9/Mines | Received a Rocket Launcher from a helpful Derelict 1140 | -9/Mines | Build established: Scavenger-Mutant 1306 | -9/Mines | Discovered new exit (range 7) 1316 | -9/Mines | Entered Materials 1316 | -8/Materials | Evolved 2 slots: Propulsion x1, Utility x1 1317 | -8/Materials | Loaded intel: 1 garrison access location 1499 | -8/Materials | Discovered new exit (range 10) 1592 | -8/Materials | Lost 5 parts (1p2n1u1w) 1684 | -8/Materials | Entered Factory 1684 | -7/Factory | Evolved 2 slots: Utility x1, Weapon x1 1794 | -7/Factory | Garrison activated, responded to threat 2440 | -7/Factory | Build established: Scavenger-Tank 2993 | -7/Factory | Build established: Tank 3083 | -7/Factory | Garrison activated, responded to threat 3525 | -7/Factory | Build established: Scavenger-Tank 4084 | -7/Factory | First assault squad dispatched 4684 | -7/Factory | Garrison activated, responded to threat 5012 | -7/Factory | Core integrity fell below 50% 5012 | -7/Factory | Garrison activated, responded to threat 5189 | -7/Factory | Lost 14 parts (4p4n3u3w) 5313 | -7/Factory | Core integrity fell below 20% 5452 | -7/Factory | Build established: Gunner 5959 | -7/Factory | Discovered new exit (range 12) 5960 | -7/Factory | Destroyed by H-61 Shepherd with Heavy Assault Cannon Last Messages --------------- 05906_ X-57 Shotgunner destroyed. 05906_ Slug penetrates G-47 Trooper. 05908_ Mic. Nuclear Core destroyed. 05909_ G-47 Trooper destroyed. 05912_ Acquired 7 matter. 05919_ Acquired Lgt. Nuclear Core. 05921_ Acquired 12 matter. 05924_ Acquired 33 matter. 05929_ System corrupted: FCS attempts to trigger Assault Cannon. 05929_ System corrupted: Assault Cannon misfires. 05932_ Acquired Surge Thruster. 05939_ Acquired Hrd. Medium Armor Plating. 05940_ Acquired 56 matter. 05942_ Acquired 38 matter. 05950_ Acquired 4 matter. 05952_ Slug penetrates W-25 Informer. 05959_ EXIT=FOUND [Achievement: Just Browsing] Map ----- +----------------------------------------------------+ | ?????????????????????????????????????????????????? | | ?????????????????????????????????????????????????? | | ?????????????????????????????????????????????????? | | ?????????????????????????????????????????????????? | | ?????????????????????????????????????????????????? | | ?????????????????????????????????????????????????? | | ?????????????????????????????????????????????????? | | ?????????????????????????????????????????????????? | | ?????????????????????????????????????????????????? | | ?????????????????????????????????????????????????? | | ?????????????????????????????????????????????????? | | ?????????????????????????????????????????????????? | | ?????????????????????????????????????????????????? | | ?????????????????????????????????????????????????? | | ?????????????????????????????????????????????????? | | ?????????????????????????????????????????????????? | | ?????????????????????????????????????????????????? | | ?????????????????????????????####????????????????? | | ????????????????????????????? #????????????????? | | ?????????????#???????######## #????????????????? | | ????????????## #?????# #####????????????? | | ???????????# ##### * #????????????? | | ???????????# #????????????? | | ???????????# H " +????????????? | | ?????????????? #????????????? | | ?????????????????????# @ #????????????? | | ?????????????????????# % #####???????????????? | | ????????????????????#####;########???????????????? | | ????????????????????# #???????????????? | | ############????????# ![ """""" #???????????????? | | ^^ #????????# """"" #???????????????? | | ! #????????# """""" ########????????? | | ! """ #????????# ! """"" + #????????? | | !! """ ########## ###### #????????? | | ! """ # # """"""" #????# #????????? | | # """ # """"""" #????# #????????? | | # """ # """"""" #????# #????????? | | ! # """ # """"""" #???##+########## | | [ # #???# | | % ! """ # #???# | | """ ########+#####???# | | """ #??????# #???????# | | = #??????# #???????# | | ###+#########?# #???????# | | #?# #???????# | | #?# #???????# | | ###+######??# | | % # #??# | | # #??# | | ######### # """"" #??# | +----------------------------------------------------+ Best States ------------- Heat Dissipation 75 Energy Generation 29 Energy Capacity 490 Matter Stores 450 Matter Capacity 450 Sight Range 16 Robot Scan Range 15 Terrain Scan Density 10 Jamming Range 12 Armor Coverage 150 Resistance: EM 15 Weapon Cycling 15 Phase Shifting 5 Evasion (%) 60 Recoil Reduction 7 Matter Filtering 30 Item Schematics ----------------- None Robot Schematics ------------------ None Fabricated ------------ Nothing Repaired ---------- Nothing Alien Tech Used ----------------- None Achievements -------------- It Was An Accident, I Swear Just Browsing Party Time Total Silence Challenges ------------ None Game ------ Seed RainbowExplosivePower Manual? 0 Play Time 01:10:31 Cumulative 25.5 hours Start 2025.06.25 @ 12:22:03 End 2025.06.25 @ 14:23:02 Sessions 7 Manual Loads 0 Difficulty Rogue Special Mode None Game No. 31 Rogue 31 Adventurer 0 Explorer 0 Win Type - Total 0 Types 0/0/0/0/0/0/0/0/0/0 Lore% 9 Gallery% 25 Achievement% 19 Wizard Run 0 Options --------- Layout 1 ASCII 0 Keyboard 0 Movement Mouse Keybinds 0 Fullscreen 2 Font 48/Smallcaps Map View 50x35 Zoom Use 0% Tactical HUD 1 Map Filters NONE Filters NONE Steam 0 RUN: 78251aee-a010-46b8-9a6e-6dceb53e25e7